fUSD/lending_fUSD_20250306
["ID","MTS","AMOUNT","RATE_DAILY","PERIOD"]
[355547636,1741264240167,-500.71123218,0.00011777,2]
[355547637,1741264240177,-500.0,0.00011777,2]
[355547638,1741264240186,-500.0,0.00011777,2]
[355547639,1741264240195,-455.39479966,0.00011777,2]
[355547640,1741264240205,-500.0,0.00011777,2]
[355547642,1741264240214,-500.0,0.00011777,2]
[355547643,1741264240224,-500.0,0.00011777,2]
[355547644,1741264240234,-500.0,0.00011777,2]
[355547645,1741264240243,-748.19,0.00011777,2]
[355547646,1741264240252,-500.0,0.00011777,2]
[355547647,1741264240262,-505.84845188,0.00011777,2]
[355547648,1741264240271,-500.0,0.00011777,2]
[355547649,1741264240281,-500.0,0.00011777,2]
[355547650,1741264240290,-500.0,0.00011777,2]
[355547651,1741264240300,-845.19,0.00011777,2]
[355547652,1741264240310,-500.0,0.00011777,2]
[355547653,1741264240320,-500.0,0.00011777,2]
[355547654,1741264240330,-500.0,0.00011777,2]
[355547655,1741264240339,-500.0,0.00011777,2]
[355547656,1741264240348,-500.0,0.00011777,2]
[355547657,1741264240359,-500.0,0.00011777,2]
[355547658,1741264240368,-505.58487714,0.00011777,2]
[355547659,1741264240378,-500.0,0.00011777,2]
[355547660,1741264240387,-500.0,0.00011777,2]
[355547661,1741264240398,-506.39932707,0.00011777,2]
[355547662,1741264240408,-500.0,0.00011777,2]
[355547663,1741264240418,-500.0,0.00011777,2]
[355547664,1741264240428,-500.0,0.00011777,2]
[355547665,1741264240437,-909.4,0.00011777,2]
[355547666,1741264240447,-500.0,0.00011777,2]
[355547667,1741264240457,-500.0,0.00011777,2]
[355547668,1741264240466,-500.0,0.00011777,2]
[355547669,1741264240476,-500.0,0.00011777,2]
[355547670,1741264240487,-500.0,0.00011777,2]
[355547671,1741264240497,-500.0,0.00011777,2]
[355547672,1741264240506,-532.26,0.00011777,2]
[355547673,1741264240515,-500.0,0.00011777,2]
[355547674,1741264240525,-788.47,0.00011777,2]
[355547675,1741264240534,-500.0,0.00011777,2]
[355547676,1741264240543,-500.0,0.00011777,2]
[355547677,1741264240553,-500.0,0.00011777,2]
[355547678,1741264240563,-500.0,0.00011777,2]
[355547679,1741264240572,-500.0,0.00011777,2]
[355547680,1741264240583,-500.0,0.00011777,2]
[355547681,1741264240592,-500.0,0.00011777,2]
[355547682,1741264240602,-500.0,0.00011777,2]
[355547683,1741264240611,-500.0,0.00011777,2]
[355547684,1741264240621,-500.0,0.00011777,2]
[355547685,1741264240630,-500.0,0.00011777,2]
[355547686,1741264240640,-500.0,0.00011777,2]
[355547687,1741264240649,-500.0,0.00011777,2]
[355547688,1741264240659,-500.0,0.00011777,2]
[355547689,1741264240668,-500.0,0.00011777,2]
[355547690,1741264240678,-500.0,0.00011777,2]
[355547691,1741264240687,-869.14,0.00011777,2]
[355547692,1741264240697,-500.0,0.00011777,2]
[355547693,1741264240708,-946.75,0.00011777,2]
[355547694,1741264240717,-500.0,0.00011777,2]
[355547695,1741264240727,-500.0,0.00011777,2]
[355547696,1741264240737,-500.0,0.00011777,2]
[355547697,1741264240746,-500.0,0.00011777,2]
[355547698,1741264240756,-507.87725423,0.00011777,2]
[355547699,1741264240766,-500.0,0.00011777,2]
[355547700,1741264240775,-500.0,0.00011777,2]
[355547701,1741264240785,-500.0,0.00011777,2]
[355547702,1741264240794,-500.0,0.00011777,2]
[355547703,1741264240804,-500.0,0.00011777,2]
[355547704,1741264240813,-500.0,0.00011777,2]
[355547705,1741264240823,-523.88072603,0.00011777,2]
[355547706,1741264240832,-500.0,0.00011777,2]
[355547707,1741264240842,-500.0,0.00011777,2]
[355547708,1741264240851,-500.0,0.00011777,2]
[355547709,1741264241082,-524.2689387,0.00011777,2]
[355547710,1741264241092,-500.0,0.00011777,2]
[355547711,1741264241102,-677.67,0.00011777,2]
[355547712,1741264241111,-500.0,0.00011777,2]
[355547713,1741264241121,-500.0,0.00011777,2]
[355547714,1741264241131,-500.0,0.00011777,2]
[355547715,1741264241141,-500.0,0.00011777,2]
[355547716,1741264241150,-500.0,0.00011777,2]
[355547717,1741264241159,-500.0,0.00011777,2]
[355547718,1741264241169,-500.0,0.00011777,2]
[355547719,1741264241178,-669.29,0.00011777,2]
[355547720,1741264241187,-500.0,0.00011777,2]
[355547721,1741264241197,-500.0,0.00011777,2]
[355547722,1741264241206,-500.0,0.00011777,2]
[355547723,1741264241216,-500.0,0.00011777,2]
[355547724,1741264241225,-820.13,0.00011777,2]
[355547725,1741264241236,-500.0,0.00011777,2]
[355547726,1741264241245,-500.0,0.00011777,2]
[355547727,1741264241256,-500.0,0.00011777,2]
[355547728,1741264241265,-500.0,0.00011777,2]
[355547729,1741264241275,-500.0,0.00011777,2]
[355547730,1741264241284,-500.0,0.00011777,2]
[355547731,1741264241293,-500.0,0.00011777,2]
[355547732,1741264241303,-370.89607988,0.00011777,2]
[355547733,1741264241316,-500.0,0.00011777,2]
[355547734,1741264241326,-514.78456388,0.00011777,2]
[355547735,1741264241337,-500.0,0.00011777,2]
[355547736,1741264241346,-500.38667617,0.00011777,2]
[355547737,1741264241358,-500.0,0.00011777,2]
[355547738,1741264241367,-500.0,0.00011777,2]
[355547739,1741264241377,-500.0,0.00011777,2]
[355547740,1741264241387,-500.0,0.00011777,2]
[355547741,1741264241397,-500.0,0.00011777,2]
[355547742,1741264241408,-350.0,0.00011777,2]
[355547743,1741264241418,-500.0,0.00011777,2]
[355547744,1741264241427,-500.0,0.00011777,2]
[355547745,1741264241437,-201.957342,0.00011777,2]
[355547746,1741264241448,-201.957342,0.00011777,2]
[355547747,1741264241458,-201.957342,0.00011777,2]
[355547748,1741264241468,-514.32585757,0.00011777,2]
[355547749,1741264241477,-201.957342,0.00011777,2]
[355547750,1741264241490,-201.957342,0.00011777,2]
[355547751,1741264241510,-201.957342,0.00011777,2]
[355547752,1741264241520,-201.957342,0.00011777,2]
[355547753,1741264241530,-500.0,0.00011777,2]
[355547754,1741264241540,-500.0,0.00011777,2]
[355547755,1741264241550,-201.957342,0.00011777,2]
[355547756,1741264241559,-578.54,0.00011777,2]
[355547757,1741264241567,-201.957342,0.00011777,2]
[355547758,1741264241574,-201.957342,0.00011777,2]
[355547759,1741264241581,-201.957342,0.00011777,2]
[355547760,1741264241588,-201.957342,0.00011777,2]
[355547761,1741264241597,-504.26349904,0.00011777,2]
[355547762,1741264241607,-502.29058485,0.00011777,2]
[355547763,1741264241616,-372.44349842,0.00011777,2]
[355547764,1741264241626,-697.35,0.00011777,2]
[355547765,1741264241636,-500.0,0.00011777,2]
[355547766,1741264241645,-1154.66,0.00011777,2]
[355547767,1741264241656,-500.0,0.00011777,2]
[355547768,1741264241666,-473.05563117,0.00011777,2]
[355547769,1741264241676,-500.0,0.00011777,2]
[355547770,1741264241686,-501.77108668,0.00011777,2]
[355547771,1741264241697,-594.58,0.00011777,2]
[355547772,1741264241707,-500.0,0.00011777,7]
[355547773,1741264241716,-502.53188495,0.00011777,2]
[355547774,1741264241726,-883.98,0.00011777,2]
[355547775,1741264241737,-772.41,0.00011777,2]
[355547776,1741264241747,-724.39,0.00011777,2]
[355547777,1741264241756,-500.0,0.00011777,2]
[355547778,1741264241766,-1344.4,0.00011777,2]
[355547779,1741264241776,-503.11984613,0.00011777,2]
[355547780,1741264241786,-500.0,0.00011777,2]
[355547781,1741264241795,-500.0,0.00011777,2]
[355547782,1741264241806,-1270.77,0.00011777,2]
[355547783,1741264241816,-503.05240084,0.00011777,2]
[355547784,1741264241825,-500.0,0.00011777,2]
[355547785,1741264241835,-580.73,0.00011777,2]
[355547786,1741264241847,-576.57,0.00011777,2]
[355547787,1741264241857,-500.0,0.00011777,2]
[355547788,1741264241867,-500.0,0.00011777,2]
[355547789,1741264241877,-500.0,0.00011777,2]
[355547790,1741264241887,-1473.01,0.00011777,2]
[355547791,1741264241897,-500.0,0.00011777,2]
[355547792,1741264241907,-516.48221177,0.00011777,2]
[355547793,1741264241917,-2052.73,0.00011777,2]
[355547794,1741264241926,-500.0,0.00011777,2]
[355547795,1741264241936,-1585.87,0.00011777,2]
[355547796,1741264241946,-694.09,0.00011777,2]
[355547797,1741264241956,-743.73677,0.00011777,2]
[355547798,1741264241966,-500.0,0.00011777,2]
[355547799,1741264241976,-500.0,0.00011777,2]
[355547800,1741264241987,-967.3,0.00011777,2]
[355547801,1741264241997,-786.26,0.00011777,2]
[355547802,1741264242007,-500.0,0.00011777,2]
[355547803,1741264242018,-500.0,0.00011777,2]
[355547804,1741264242028,-809.3,0.00011777,2]
[355547805,1741264242038,-500.0,0.00011777,2]
[355547806,1741264242048,-907.6,0.00011777,2]
[355547807,1741264242058,-560.29,0.00011777,2]
[355547808,1741264242067,-1730.03,0.00011777,2]
[355547809,1741264242077,-500.0,0.00011777,2]
[355547810,1741264242086,-1133.004344,0.00011777,2]
[355547811,1741264242096,-500.0,0.00011777,2]
[355547812,1741264242106,-503.19273066,0.00011777,2]
[355547813,1741264242115,-500.0,0.00011777,2]
[355547814,1741264242125,-500.0,0.00011777,2]
[355547815,1741264242134,-500.0,0.00011777,2]
[355547816,1741264242144,-502.22462486,0.00011777,2]
[355547817,1741264242153,-500.0,0.00011777,2]
[355547818,1741264242163,-11149.11,0.00011777,2]
[355547819,1741264242172,-506.19381546,0.00011777,2]
[355547820,1741264242182,-2900.55,0.00011777,2]
[355547821,1741264242192,-500.4078513,0.00011777,2]
[355547822,1741264242202,-500.0,0.00011777,2]
[355547823,1741264242211,-500.0,0.00011777,2]
[355547824,1741264242221,-500.0,0.00011777,2]
[355547825,1741264242231,-3131.11,0.00011777,2]
[355547826,1741264242246,-500.0,0.00011777,2]
[355547827,1741264242256,-1422.83,0.00011777,2]
[355547828,1741264242265,-2655.51,0.00011777,2]
[355547829,1741264242275,-5887.17,0.00011777,2]
[355547830,1741264242285,-500.0,0.00011777,2]
[355547831,1741264242296,-500.0,0.00011777,2]
[355547832,1741264242307,-500.0,0.00011777,2]
[355547833,1741264242319,-500.0,0.00011777,2]
[355547834,1741264242330,-500.0,0.00011777,2]
[355547835,1741264242340,-500.0,0.00011777,2]
[355547836,1741264242353,-500.0,0.00011777,2]
[355547837,1741264242365,-1327.47,0.00011777,2]
[355547838,1741264242375,-500.0,0.00011777,2]
[355547839,1741264242385,-988.91,0.00011777,2]
[355547840,1741264242396,-500.0,0.00011777,2]
[355547841,1741264242406,-502.64675155,0.00011777,2]
[355547842,1741264242415,-327.42070456,0.00011777,2]
[355547843,1741264242425,-614.79,0.00011777,2]
[355547844,1741264242435,-500.0,0.00011777,2]
[355547845,1741264242444,-500.0,0.00011777,2]
[355547846,1741264242454,-500.0,0.00011777,2]
[355547847,1741264242461,-500.0,0.00011777,2]
[355547848,1741264242469,-1484.24,0.00011777,2]
[355547849,1741264242478,-1839.73,0.00011777,2]
[355547850,1741264242491,-500.0,0.00011777,2]
[355547851,1741264242500,-500.0,0.00011777,2]
[355547852,1741264242509,-2083.37,0.00011777,2]
[355547853,1741264242519,-947.24,0.00011777,2]
[355547854,1741264242529,-500.0,0.00011777,2]
[355547855,1741264242539,-780.53,0.00011777,2]
[355547856,1741264242548,-500.0,0.00011777,2]
[355547857,1741264242558,-500.0,0.00011777,2]
[355547858,1741264242568,-502.38470985,0.00011777,2]
[355547859,1741264242578,-949.77,0.00011777,2]
[355547860,1741264242588,-500.0,0.00011777,2]
[355547861,1741264242598,-500.0,0.00011777,2]
[355547862,1741264242608,-3231.1,0.00011777,2]
[355547863,1741264242618,-500.0,0.00011777,2]
[355547864,1741264242628,-500.0,0.00011777,2]
[355547865,1741264242638,-1252.04,0.00011777,2]
[355547866,1741264242648,-500.0,0.00011777,2]
[355547867,1741264242658,-1552.02,0.00011777,2]
[355547868,1741264242668,-1688.69,0.00011777,2]
[355547869,1741264242678,-500.0,0.00011777,2]
[355547870,1741264242688,-500.0,0.00011777,2]
[355547871,1741264242698,-500.0,0.00011777,2]
[355547872,1741264242708,-500.0,0.00011777,2]
[355547873,1741264242718,-1316.22,0.00011777,2]
[355547874,1741264242736,-500.0,0.00011777,2]
[355547875,1741264242746,-9543.72,0.00011777,2]
[355547876,1741264242756,-503.50003552,0.00011777,2]
[355547877,1741264242766,-3593.13,0.00011777,2]
[355547878,1741264242775,-394.38548887,0.00011777,2]
[355547879,1741264242785,-1237.35,0.00011777,2]
[355547880,1741264242795,-503.75463796,0.00011777,2]
[355547881,1741264242806,-500.0,0.00011777,2]
[355547882,1741264242820,-500.0,0.00011777,2]
[355547883,1741264242839,-500.0,0.00011777,2]
[355547884,1741264242851,-500.0,0.00011777,2]
[355547885,1741264242861,-500.0,0.00011777,2]
[355547886,1741264242871,-502.50358042,0.00011777,2]
[355547887,1741264242881,-500.0,0.00011777,2]
[355547888,1741264242891,-1662.26,0.00011777,2]
[355547889,1741264242901,-1823.7,0.00011777,2]
[355547890,1741264242911,-500.0,0.00011777,2]
[355547891,1741264242921,-665.55,0.00011777,2]
[355547892,1741264242931,-1173.8,0.00011777,2]
[355547893,1741264242941,-1523.84,0.00011777,2]
[355547894,1741264242951,-500.0,0.00011777,2]
[355547895,1741264242961,-500.0,0.00011777,2]
[355547896,1741264242970,-500.0,0.00011777,2]
[355547897,1741264242981,-2990.09,0.00011777,2]
[355547898,1741264242992,-500.0,0.00011777,2]
[355547899,1741264243003,-500.0,0.00011777,2]
[355547900,1741264243012,-846.76,0.00011777,2]
[355547901,1741264243022,-500.0,0.00011777,2]
[355547902,1741264243033,-500.0,0.00011777,2]
[355547903,1741264243043,-500.0,0.00011777,2]
[355547904,1741264243057,-500.0,0.00011777,2]
[355547905,1741264243067,-500.0,0.00011777,2]
[355547906,1741264243077,-4517.97,0.00011777,2]
[355547907,1741264243087,-511.38065122,0.00011777,2]
[355547908,1741264243097,-500.0,0.00011777,2]
[355547909,1741264243108,-500.0,0.00011777,2]
[355547910,1741264243118,-500.0,0.00011777,2]
[355547913,1741264243129,-500.0,0.00011777,2]
[355547914,1741264243139,-2524.73,0.00011777,2]
[355547915,1741264243150,-500.0,0.00011777,2]
[355547916,1741264243160,-570.77789511,0.00011777,2]
[355547917,1741264243170,-500.0,0.00011777,2]
[355547918,1741264243180,-1277.86,0.00011777,2]
[355547919,1741264243190,-500.0,0.00011777,2]
[355547920,1741264243200,-500.0,0.00011777,2]
[355547921,1741264243210,-500.0,0.00011777,2]
[355547922,1741264243221,-788.18,0.00011777,2]
[355547923,1741264243231,-500.0,0.00011777,2]
[355547924,1741264243242,-500.0,0.00011777,2]
[355547925,1741264243252,-500.0,0.00011777,2]
[355547926,1741264243261,-500.0,0.00011777,2]
[355547927,1741264243271,-1163.91,0.00011777,2]
[355547928,1741264243281,-1000.0,0.00011777,2]
[355547929,1741264243291,-1571.92,0.00011777,2]
[355547930,1741264243302,-500.0,0.00011777,2]
[355547931,1741264243313,-500.0,0.00011777,2]
[355547932,1741264243333,-6956.31,0.00011777,2]
[355547933,1741264243350,-500.0,0.00011777,2]
[355547934,1741264243361,-2503.31,0.00011777,2]
[355547935,1741264243370,-323.04333332,0.00011777,2]
[355547936,1741264243380,-508.85411111,0.00011777,2]
[355547937,1741264243389,-500.0,0.00011777,2]
[355547938,1741264243398,-494.0,0.00011777,2]
[355547939,1741264243408,-2345.34,0.00011777,2]
[355547940,1741264243417,-984.08,0.00011777,2]
[355547941,1741264243428,-1474.81,0.00011777,2]
[355547942,1741264243443,-500.0,0.00011777,2]
[355547943,1741264243456,-500.0,0.00011777,2]
[355547944,1741264243465,-1277.39,0.00011777,2]
[355547945,1741264243475,-808.98,0.00011777,2]
[355547946,1741264243485,-629.44441398,0.00011777,2]
[355547947,1741264243495,-500.0,0.00011777,2]
[355547948,1741264243505,-500.0,0.00011777,2]
[355547949,1741264243515,-744.55,0.00011777,2]
[355547950,1741264243525,-552.1,0.00011777,2]
[355547951,1741264243536,-500.0,0.00011777,2]
[355547952,1741264243546,-503.67405267,0.00011777,2]
[355547953,1741264243557,-500.0,0.00011777,2]
[355547954,1741264243567,-500.0,0.00011777,2]
[355547955,1741264243577,-500.0,0.00011777,2]
[355547956,1741264243587,-1441.44,0.00011777,2]
[355547957,1741264243597,-500.0,0.00011777,2]
[355547958,1741264243607,-789.8,0.00011777,2]
[355547959,1741264243617,-500.0,0.00011777,2]
[355547960,1741264243627,-641.82399859,0.00011777,2]
[355547962,1741264243637,-500.0,0.00011777,2]
[355547964,1741264243648,-1133.24,0.00011777,2]
[355547965,1741264243658,-500.0,0.00011777,2]
[355547966,1741264243668,-501.39327481,0.00011777,2]
[355547968,1741264243678,-500.0,0.00011777,2]
[355547970,1741264243688,-500.0,0.00011777,2]
[355547971,1741264243698,-500.0,0.00011777,2]
[355547972,1741264243708,-500.0,0.00011777,2]
[355547973,1741264243719,-1057.41,0.00011777,2]
[355547974,1741264243731,-1729.66,0.00011777,2]
[355547975,1741264243743,-500.0,0.00011777,2]
[355547976,1741264243759,-500.0,0.00011777,2]
[355547977,1741264243769,-1076.22,0.00011777,2]
[355547978,1741264243780,-500.0,0.00011777,2]
[355547979,1741264243790,-151.0,0.00011777,2]
[355547980,1741264243800,-500.0,0.00011777,2]
[355547982,1741264243810,-500.0,0.00011777,2]
[355547983,1741264243821,-500.0,0.00011777,2]
[355547984,1741264243831,-500.0,0.00011777,2]
[355547986,1741264243842,-500.0,0.00011777,2]
[355547987,1741264243852,-500.0,0.00011777,2]
[355547988,1741264243862,-500.0,0.00011777,2]
[355547989,1741264243873,-500.0,0.00011777,2]
[355547990,1741264243883,-500.0,0.00011777,2]
[355547991,1741264243893,-500.0,0.00011777,2]
[355547992,1741264243903,-500.0,0.00011777,2]
[355547993,1741264243914,-500.0,0.00011777,2]
[355547994,1741264243924,-1251.03,0.00011777,2]
[355547995,1741264243935,-722.36,0.00011777,2]
[355547996,1741264243945,-500.0,0.00011777,2]
[355547997,1741264243956,-500.0,0.00011777,2]
[355547998,1741264243966,-500.0,0.00011777,2]
[355547999,1741264243976,-4885.45,0.00011777,2]
[355548000,1741264243986,-500.0,0.00011777,2]
[355548001,1741264243996,-1358.29,0.00011777,2]
[355548002,1741264244007,-503.04332839,0.00011778,2]
[355548003,1741264244017,-502.74154746,0.00011778,2]
[355548004,1741264244027,-516.61876544,0.00011778,2]
[355548005,1741264244037,-541.51078386,0.00011778,2]
[355548006,1741264244047,-200.0,0.00011778,2]
[355548007,1741264244058,-500.0,0.00011778,2]
[355548008,1741264244067,-500.0,0.00011778,2]
[355548009,1741264244077,-500.0,0.00011778,2]
[355548010,1741264244088,-507.36217754,0.00011778,2]
[355548011,1741264244098,-500.0,0.00011778,2]
[355548012,1741264244107,-500.0,0.00011778,2]
[355548013,1741264244117,-500.0,0.00011778,2]
[355548014,1741264244129,-500.0,0.00011778,2]
[355548015,1741264244139,-500.0,0.00011778,2]
[355548016,1741264244149,-500.0,0.00011778,2]
[355548017,1741264244159,-500.0,0.00011778,2]
[355548018,1741264244169,-500.0,0.00011778,2]
[355548019,1741264244179,-500.0,0.00011778,2]
[355548020,1741264244189,-500.0,0.00011778,2]
[355548021,1741264244198,-499.33662948,0.00011778,2]
[355548022,1741264244208,-500.0,0.00011778,2]
[355548023,1741264244218,-500.0,0.00011778,2]
[355548024,1741264244228,-504.7823654,0.00011778,2]
[355548025,1741264244239,-500.0,0.00011778,2]
[355548026,1741264244249,-404.41255572,0.00011778,2]
[355548027,1741264244259,-500.0,0.00011778,2]
[355548029,1741264244269,-504.92009545,0.00011778,2]
[355548030,1741264244279,-500.0,0.00011778,2]
[355548031,1741264244289,-500.0,0.00011778,2]
[355548032,1741264244299,-500.0,0.00011778,2]
[355548033,1741264244310,-500.0,0.00011778,2]
[355548034,1741264244324,-500.0,0.00011778,2]
[355548035,1741264244333,-500.0,0.00011778,2]
[355548036,1741264244343,-500.86465872,0.00011778,2]
[355548037,1741264244353,-500.0,0.00011778,2]
[355548038,1741264244363,-511.22936853,0.00011778,2]
[355548039,1741264244373,-505.00973048,0.00011778,2]
[355548040,1741264244382,-500.0,0.00011778,2]
[355548041,1741264244391,-502.60594304,0.00011778,2]
[355548042,1741264244402,-150.0,0.00011778,2]
[355548043,1741264244413,-500.0,0.00011778,2]
[355548044,1741264244422,-500.0,0.00011778,2]
[355548045,1741264244432,-500.0,0.00011778,2]
[355548046,1741264244442,-701.59093525,0.00011778,2]
[355548047,1741264244452,-500.0,0.00011778,2]
[355548048,1741264244462,-500.0,0.00011778,2]
[355548049,1741264244471,-500.0,0.00011778,2]
[355548050,1741264244481,-500.0,0.00011778,2]
[355548051,1741264244492,-500.0,0.00011778,2]
[355548052,1741264244502,-500.0,0.00011778,2]
[355548053,1741264244512,-502.90025383,0.00011778,2]
[355548054,1741264244522,-500.0,0.00011778,2]
[355548055,1741264244531,-500.0,0.00011778,2]
[355548056,1741264244542,-516.39177495,0.00011778,2]
[355548057,1741264244551,-500.0,0.00011778,2]
[355548058,1741264244561,-500.0,0.00011778,2]
[355548059,1741264244570,-500.0,0.00011778,2]
[355548060,1741264244580,-500.0,0.00011778,2]
[355548061,1741264244590,-500.0,0.00011778,2]
[355548062,1741264244599,-500.0,0.00011778,2]
[355548063,1741264244608,-500.0,0.00011778,2]
[355548064,1741264244618,-203.428971,0.00011778,2]
[355548065,1741264244628,-500.0,0.00011778,2]
[355548066,1741264244638,-565.68223848,0.00011778,2]
[355548067,1741264244648,-500.0,0.00011778,2]
[355548068,1741264244658,-500.0,0.00011778,2]
[355548069,1741264244669,-501.97834825,0.00011778,2]
[355548070,1741264244678,-500.0,0.00011778,2]
[355548071,1741264244688,-500.0,0.00011778,2]
[355548072,1741264244699,-500.0,0.00011778,2]
[355548073,1741264244709,-500.0,0.00011778,2]
[355548074,1741264244720,-500.0,0.00011778,2]
[355548075,1741264244730,-500.0,0.00011778,2]
[355548076,1741264244745,-500.0,0.00011778,2]
[355548077,1741264244756,-500.0,0.00011778,2]
[355548078,1741264244766,-500.0,0.00011778,2]
[355548079,1741264244777,-500.0,0.00011778,2]
[355548080,1741264244788,-500.0,0.00011778,2]
[355548081,1741264244797,-500.0,0.00011778,2]
[355548082,1741264244807,-204.20991511,0.00011778,2]
[355548083,1741264244817,-508.77333169,0.00011778,2]
[355548084,1741264244827,-500.0,0.00011778,2]
[355548085,1741264244837,-500.0,0.00011778,2]
[355548086,1741264244848,-500.0,0.00011778,2]
[355548087,1741264244859,-500.0,0.00011778,2]
[355548088,1741264244868,-500.0,0.00011778,2]
[355548089,1741264244878,-500.0,0.00011778,2]
[355548090,1741264244888,-500.0,0.00011778,2]
[355548091,1741264244898,-500.0,0.00011778,2]
[355548092,1741264244907,-500.0,0.00011778,2]
[355548093,1741264244917,-530.02212821,0.00011778,2]
[355548094,1741264244926,-522.06,0.00011778,2]
[355548095,1741264244935,-500.0,0.00011778,2]
[355548096,1741264244945,-511.23979938,0.00011778,2]
[355548097,1741264244955,-500.0,0.00011778,2]
[355548098,1741264244964,-580.48991889,0.00011778,2]
[355548099,1741264244973,-582.3327356,0.00011778,2]
[355548100,1741264244983,-500.0,0.00011778,2]
[355548101,1741264244995,-500.0,0.00011778,2]
[355548102,1741264245006,-500.0,0.00011778,2]
[355548103,1741264245016,-500.0,0.00011778,2]
[355548104,1741264245027,-500.0,0.00011778,2]
[355548105,1741264245038,-500.0,0.00011778,2]
[355548106,1741264245048,-500.0,0.00011778,2]
[355548107,1741264245058,-200.0,0.00011778,2]
[355548108,1741264245067,-500.0,0.00011778,2]
[355548109,1741264245077,-500.0,0.00011778,2]
[355548110,1741264245089,-500.0,0.00011778,2]
[355548111,1741264245099,-500.0,0.00011778,2]
[355548112,1741264245108,-500.0,0.00011778,2]
[355548113,1741264245119,-201.957342,0.00011778,2]
[355548114,1741264245128,-201.957342,0.00011778,2]
[355548115,1741264245138,-201.957342,0.00011778,2]
[355548116,1741264245148,-201.957342,0.00011778,2]
[355548117,1741264245157,-201.957342,0.00011778,2]
[355548118,1741264245167,-201.957342,0.00011778,2]
[355548119,1741264245177,-201.957342,0.00011778,2]
[355548120,1741264245187,-201.957343,0.00011778,2]
[355548121,1741264245198,-500.0,0.00011778,2]
[355548122,1741264245208,-883.98,0.00011778,2]
[355548123,1741264245219,-500.0,0.00011778,2]
[355548124,1741264245228,-1128.4,0.00011778,2]
[355548125,1741264245240,-300.0,0.00011779,2]
[355548126,1741264245250,-155.05561145,0.00011779,2]
[355548127,1741264245260,-500.0,0.00011779,2]
[355548128,1741264245269,-603.87,0.00011779,2]
[355548129,1741264245285,-500.0,0.00011779,2]
[355548130,1741264245299,-500.0,0.00011779,2]
[355548131,1741264245310,-500.0,0.00011779,2]
[355548132,1741264245322,-500.0,0.00011779,2]
[355548133,1741264245584,-500.0,0.00011779,2]
[355548134,1741264245594,-500.0,0.00011779,2]
[355548135,1741264245604,-500.0,0.00011779,2]
[355548136,1741264245613,-500.0,0.00011779,2]
[355548137,1741264245623,-500.0,0.00011779,2]
[355548138,1741264245632,-500.0,0.00011779,2]
[355548139,1741264245642,-500.0,0.00011779,2]
[355548140,1741264245652,-500.0,0.00011779,2]
[355548141,1741264245662,-500.0,0.00011779,2]
[355548142,1741264245672,-542.62,0.00011779,2]
[355548143,1741264245682,-500.0,0.00011779,2]
[355548144,1741264245691,-500.0,0.00011779,2]
[355548145,1741264245701,-500.0,0.00011779,2]